Cogmind - Beta 14 @@@ ROGUE MODE // 2024.10.31 @ 17:52:57 Player: weedlord420 Result: Destroyed by O3-8SX(R) with Subdweller Laser Performance ------------- Evolutions (0) 0 Regions Visited (2) 400 Robots Destroyed (22) 110 Value Destroyed (573) 573 Prototype IDs (0) 0 Alien Tech Used (0) 0 Bonus (0) 0 TOTAL SCORE: 1083 Bonus ------- None Cogmind --------- Core Integrity 0/250 Matter 259/300 Energy 265/265 System Corruption 0% Temperature Cool (6) Movement Treading (160) Location -10/Subcaves Parts ------- > --- POWER (1) -------- Improved Ion Engine > --- PROPULSION (2) --- Light Treads Light Treads > --- UTILITY (2) ------ Medium Storage Unit > --- WEAPON (2) ------- Heavy Assault Rifle Heavy Battle Rifle > --- INVENTORY (10) --- Subdweller Power Source Spiked Treads Wheel Wheel Structural Scanner Sensor Array Cobbler Unit Subdweller Shrapnel Launcher Mace Peak State ------------ > --- POWER ------------ Improved Ion Engine > --- PROPULSION ------- Light Treads Light Treads > --- UTILITY ---------- Medium Storage Unit Structural Scanner > --- WEAPON ----------- Heavy Assault Rifle Heavy Battle Rifle > --- INVENTORY -------- Subdweller Power Source Spiked Treads Wheel Wheel Sensor Array Light Armor Plating Light Armor Plating Cobbler Unit Mace [Rating: 13] Favorites ----------- Power Improved Ion Engine Engine Improved Ion Engine Propulsion Light Treads Treads Light Treads Wheel Compact Wheel Utility Small Storage Unit Device Structural Scanner Storage Small Storage Unit Processor Targeting Computer Protection Light Armor Plating Weapon Heavy Assault Rifle Energy Gun Medium Laser Ballistic Gun Heavy Assault Rifle Impact Weapon Hammer Build | -11 -10 -10 ------- Run | Yrd Mat Sub Slots Evolved . | . . . Power . | . . . Propulsion . | . . . Utility . | . . . Weapon . | . . . Parts Attached 34 | 6 13 15 Power 5 | 1 3 1 Engine 5 | 1 3 1 Core . | . . . Reactor . | . . . Propulsion 6 | 2 3 1 Treads 4 | . 3 1 Leg . | . . . Wheel 2 | 2 . . Hover . | . . . Flight . | . . . Utility 12 | 1 3 8 Device 5 | . . 5 Storage 2 | 1 1 . Processor 1 | . 1 . Hackware . | . . . Protection 4 | . 1 3 Artifact . | . . . Weapon 11 | 2 4 5 Energy Gun 2 | 2 . . Energy Cannon . | . . . Ballistic Gun 5 | . 2 3 Ballistic Cannon . | . . . Launcher . | . . . Special Weapon . | . . . Impact Weapon 4 | . 2 2 Slashing Weapon . | . . . Piercing Weapon . | . . . Special Melee Weapon . | . . . Unidentified Prototypes . | . . . Parts Lost 3 | . 2 1 Power . | . . . Propulsion . | . . . Utility 2 | . 1 1 Weapon 1 | . 1 . Highest Loss Streak 1 | . 1 1 To Critical Strikes . | . . . Average Slot Usage (%) 95 | . 92 99 Engine 14 | . 14 14 Treads 26 | . 25 28 Wheel 1 | . 2 . Device 3 | . . 8 Storage 14 | . 14 14 Protection 6 | . 7 5 Energy Gun 9 | . 14 . Ballistic Gun 10 | . 3 23 Impact Weapon 7 | . 8 4 Peak Build Rating 13 | 6 11 13 Average Rating 8 | 3 7 11 On Entrance 5 | . 6 11 Naked Turns . | . . . Heaviest Build 26 | 12 26 26 Greatest Support 40 | 26 40 40 Greatest Overweight (x) . | . . . Average Overweight (x) . | . . . Largest Inventory Capacity 10 | 8 10 10 Average Capacity 8 | 6 8 10 Most Carried 10 | 5 8 10 Average Carried 7 | 2 7 8 Final Capacity 10 | 8 10 10 Final Carried 10 | 3 8 10 Class Distribution -------------------- 100% | Mutant Dominant Class ---------------- Mutant | -10/Materials Mutant | -10/Subcaves Resources | -11 -10 -10 ----------- Run | Yrd Mat Sub Matter Collected 648 | 177 195 276 Remotely . | . . . Salvage Created 916 | . 596 320 Parts 38 | . 25 13 Haulers Intercepted 1 | . 1 . Recyclers Shooed . | . . . Parts Field Recycled . | . . . Retrieved Matter . | . . . Parts Self-Destructed 8 | . . 8 Prevented . | . . . Kills | -11 -10 -10 ------- Run | Yrd Mat Sub Combat Hostiles Destroyed 14 | . 8 6 Melee 1 | . . 1 Guns 6 | . 3 3 AOE 1 | . 1 . Classes Destroyed 8 | . 5 3 Worker 4 | . 4 . Builder 2 | . 2 . Hauler 1 | . 1 . Recycler 1 | . 1 . Grunt 8 | . 8 . Artisan 1 | . . 1 Cobbler 1 | . . 1 Subdweller 6 | . . 6 Best Kill Streak 6 | . 6 2 Combat Bots Only 4 | . 4 2 Max Kills in Single Turn 1 | . 1 1 Gunslinging . | . . . Exploded 1 | . 1 . Melee 1 | . . 1 Uniques/NPCs Destroyed . | . . . Combat | -11 -10 -10 -------- Run | Yrd Mat Sub Hostile Shots Fired 94 | . 53 41 Missed 28 | . 17 11 Damage Taken 1131 | . 482 649 Core 263 | . 63 200 Absorbed by Shields . | . . . Core Remaining (%) 100 | 100 . . Volleys Fired 43 | . 16 27 Largest 2 | . 2 2 Hottest 90 | . 90 56 Shots Fired 82 | . 31 51 Gun 82 | . 31 51 Cannon . | . . . Launcher . | . . . Special . | . . . Kinetic 53 | . 2 51 Thermal 15 | . 15 . Explosive . | . . . Electromagnetic 14 | . 14 . Robot Hit Streak 29 | . 18 29 Robot Miss Streak 3 | . 3 1 Penetration Max . | . . . Secondary Targets 1 | . 1 . Max Gunslinging Chain 1 | . 1 . Shots Hit Robots 90 | . 44 46 Core Hits 27 | . 16 11 Critical Kills 1 | . 1 . Critical Parts Destroyed 7 | . 5 2 Critical Strikes 8 | . 6 2 Smash 8 | . 6 2 Melee Attacks 40 | . 30 10 Impact 40 | . 30 10 Slashing . | . . . Piercing . | . . . Sneak Attacks 3 | . 2 1 Combat Hostiles . | . . . Follow-up Attacks . | . . . Damage Inflicted 1751 | . 999 752 Guns 865 | . 248 617 Cannons . | . . . Explosions 111 | . 111 . Melee 775 | . 640 135 Ramming . | . . . Kinetic 634 | . 17 617 Thermal 187 | . 187 . Explosive . | . . . Electromagnetic 155 | . 155 . Impact 775 | . 640 135 Slashing . | . . . Piercing . | . . . Highest Corruption . | . . . Average Corruption . | . . . Corruption Purged . | . . . Corruption Blocked . | . . . Overload Shots . | . . . Overflow Damage 242 | . 176 66 Projectiles . | . . . Explosions 13 | . 13 . Melee 229 | . 163 66 Knockbacks 10 | . 10 . Impact 8 | . 8 . Kinetic . | . . . Secondary 2 | . 2 . Self-Inflicted Damage 36 | . 36 . Shots 1 | . 1 . Rammed . | . . . Targets Rammed . | . . . Kicked . | . . . Crushed . | . . . Highest Temperature 250 | . 250 . Average Temperature 88 | . 88 . Received Heat Transfer 366 | . 252 114 Siege Activations . | . . . Robots Corrupted 6 | . 4 2 Combat Hostiles 6 | . 4 2 Parts Fried 6 | . 3 3 Impact Corruptions 10 | . 8 2 Robots Melted . | . . . Combat Hostiles . | . . . Parts Melted . | . . . Heat Transferred 372 | . 372 . Parts Sabotaged . | . . . Parts Stolen . | . . . Parts Stripped . | . . . Power Chain Reactions 2 | . 2 . Alert | -11 -10 -10 ------- Run | Yrd Mat Sub Peak Influence 174 | . 174 . Initial . | . . . Average 68 | . 70 . Maximum Alert Level . | . . . Low Security (%) 100 | 100 100 . Level 1 . | . . . Level 2 . | . . . Level 3 . | . . . Level 4 . | . . . Level 5 . | . . . High Security . | . . . Max Security . | . . . Squads Dispatched 1 | . 1 . Investigation 1 | . 1 . Extermination . | . . . Reinforcement . | . . . Assault . | . . . Garrison . | . . . Intercept . | . . . Searches Triggered . | . . . Construction Impeded . | . . . Haulers Reinforced . | . . . Active Scanning Responses . | . . . Cargo Convoy Interrupts . | . . . Stealth | -11 -10 -10 --------- Run | Yrd Mat Sub Distress Signals . | . . . Communications Jammed . | . . . Distress Signals . | . . . Times Spotted 28 | . 20 8 Peak Tracking Total 4 | . 4 2 Tactical Retreats 1 | . 1 . Traps | -11 -10 -10 ------- Run | Yrd Mat Sub Traps Triggered 1 | . 1 . Indirectly . | . . . Trap Hack Attempts . | . . . Triggered . | . . . Disarmed . | . . . Reprogrammed . | . . . Reused . | . . . Traps Extracted . | . . . Installed . | . . . Triggered . | . . . Machines | -11 -10 -10 ---------- Run | Yrd Mat Sub Machines Disabled . | . . . Max in Single Turn . | . . . Machines Repaired . | . . . Machines Dismantled . | . . . Machines Sabotaged . | . . . Overloaded Fab Kills . | . . . Hacking | -11 -10 -10 --------- Run | Yrd Mat Sub Machines Accessed 1 | . 1 . Terminals 1 | . 1 . Fabricators . | . . . Repair Stations . | . . . Recycling Units . | . . . Scanalyzers . | . . . Garrison Access . | . . . Total Hacks 3 | . 3 . Successful 2 | . 2 . Failed 1 | . 1 . Catastrophic . | . . . Database Lockouts . | . . . Manual 2 | . 2 . Terminals 3 | . 3 . Fabricators . | . . . Repair Stations . | . . . Recycling Units . | . . . Scanalyzers . | . . . Garrison Access . | . . . Terminal Hacks 1 | . 1 . Locate Traps 1 | . 1 . Fabricator Hacks . | . . . Repair Station Hacks . | . . . Recycling Unit Hacks . | . . . Scanalyzer . | . . . Garrison Access Hacks . | . . . Unauthorized Hacks 1 | . 1 . Terminals 1 | . 1 . Assimilate 1 | . 1 . Fabricators . | . . . Repair Stations . | . . . Recycling Units . | . . . Scanalyzers . | . . . Garrison Access . | . . . Data Cores Recovered . | . . . Used . | . . . Hacking Detections 1 | . 1 . Full Trace Events . | . . . Feedback Events . | . . . Feedback Blocked . | . . . Robot Schematics Acquired . | . . . Robots Built . | . . . Authchips . | . . . Time . | . . . Total Robot Build Rating . | . . . Part Schematics Acquired . | . . . Parts Built . | . . . Authchips . | . . . Time . | . . . Total Part Build Rating . | . . . Parts Repaired . | . . . Time . | . . . Parts Recycled . | . . . Recycled Matter . | . . . Retrieved Matter . | . . . Retrieved Components . | . . . Parts Scanalyzed . | . . . Part Schematics Acquired . | . . . Parts Damaged . | . . . Bothacking | -11 -10 -10 ------------ Run | Yrd Mat Sub Used RIF Installer . | . . . Robots Hacked . | . . . Non-combat . | . . . Combat . | . . . Robot Hacks Applied . | . . . Relay Couplers Released . | . . . Fabnet Peak Effective % . | . . . Robots Rewired . | . . . Allies Hacked . | . . . Hacks Repelled . | . . . Allies | -11 -10 -10 -------- Run | Yrd Mat Sub Total Allies 1 | . 1 . Largest Group 1 | . 1 1 Highest-Rated Group 10 | . 10 10 Highest-Rated Ally 10 | . 10 10 Total Orders . | . . . Ally Attacks . | . . . Total Damage . | . . . Kills . | . . . Allies Corrupted . | . . . Allies Melted . | . . . Intel | -11 -10 -10 ------- Run | Yrd Mat Sub Robot Analysis Total . | . . . Derelict Logs Recovered . | . . . Drone Launches . | . . . Drone Recoveries . | . . . Exploration | -11 -10 -10 ------------- Run | Yrd Mat Sub Turns Passed 1895 | 40 1174 681 Spaces Moved 1009 | 36 644 329 Core 15 | 15 . . Treads 889 | . 560 329 Legs . | . . . Wheels 105 | 21 84 . Hover . | . . . Flight . | . . . Fastest Speed 50 | 50 90 160 Average Speed 151 | 73 150 160 Slowest Speed 160 | 100 160 160 Overloaded Moves . | . . . Propulsion Burnouts . | . . . Robots Hopped . | . . . Cave-ins Triggered . | . . . Exploration Rate (%) 40 | 3 93 26 Regions Visited 2 Branch Regions 1 Pre-discovered Areas . | . . . Known Exits Taken . | . . . Unknown Exits Taken 2 | 1 1 . Scrap Searched . | . . . Spaces Dug 2 | . 1 1 Terrain Destroyed 9 | . 8 1 Melee 2 | . 1 1 Projectile . | . . . AOE 7 | . 7 . Terrain Rammed . | . . . Walls Destroyed . | . . . Machines Disabled . | . . . Actions | -11 -10 -10 --------- Run | Yrd Mat Sub Total 1225 | 48 767 410 Wait 64 | . 43 21 Move 1007 | 35 643 329 Hop . | . . . Pick Up 22 | 7 11 4 Fast Attach 5 | 2 3 . Attach 5 | 4 1 . Detach . | . . . Swap 24 | . 9 15 Drop 15 | . 11 4 Fire 43 | . 16 27 Melee 40 | . 30 10 Ram . | . . . Kick . | . . . Crush . | . . . Escape Stasis . | . . . Rewire . | . . . Trap . | . . . Miscellaneous . | . . . Route ------- -11/Scrapyard -10/Materials (discovered 6 exits: [*Mat x3] / [*Min x2] / [*Sub]) -10/Subcaves (discovered 1 exit: [*Rec]) History --------- Turn | Location | Event 11 | -11/Scrapyard | Discovered new exit (range 15) 41 | -11/Scrapyard | Entered Materials 209 | -10/Materials | Discovered new exit (range 15) 340 | -10/Materials | Build established: Mutant 403 | -10/Materials | Discovered new exit (range 7) 522 | -10/Materials | Discovered new exit (range 12) 780 | -10/Materials | Discovered new exit (range 8) 879 | -10/Materials | Discovered new exit (range 16) 1195 | -10/Materials | Discovered new exit (range 6) 1215 | -10/Materials | Entered Subcaves 1215 | -10/Subcaves | Accompanied by 1 ally 1373 | -10/Subcaves | Discovered new exit (range 13) 1381 | -10/Subcaves | A swath of the cavern ceiling suddenly collapsed 1395 | -10/Subcaves | Ambushed by angry Subdweller bent on revenge 1849 | -10/Subcaves | Shifting Twisted Machinery released Flamer 1874 | -10/Subcaves | Core integrity fell below 50% 1888 | -10/Subcaves | Core integrity fell below 20% 1896 | -10/Subcaves | Destroyed by O3-8SX(R) with Subdweller Laser Last Messages --------------- 01692_ KS-K8N(O) destroyed. 01707_ Acquired 31 matter. 01709_ Acquired 10 matter. 01710_ Dropped Lgt. Treads. 01716_ Dropped Imp. Ion Engine. 01717_ Acquired Cobbler Unit. 01722_ Subatomizers dissect the Ion Engine. 01746_ Dropped Hvy. Assault Rifle. 01754_ FA-Y9S(R): "MADSUB!" 01757_ Subatomizers dissect the Ion Engine, destroying it. 01760_ FA-Y9S(R) destroyed. 01765_ Acquired 49 matter. 01784_ Dropped Lgt. Armor Plating. 01786_ Acquired Sub. Shrapnel Launcher. Flamer falls loose from the Twisted Machinery. 01885_ Critical hit (Destroy). 01885_ Lgt. Armor Plating destroyed. 01886_ Y4-EFD(R) destroyed. 01889_ Acquired 49 matter. Map ----- +----------------------------------------------------+ | ?????????????????????????????????????????????????? | | ?????????????????????????????????????????????????? | | ?????????????????????????????????????????????????? | | ?????????????????????????????????????????????????? | | ?????????????????????????????????????????????????? | | ?????????????????????????????????????????????????? | | ?????????????????????????????????????????????????? | | ?????????????????????????????????????????????????? | | ?????????????????????????????????????????????????? | | ?????????????????????????????????????????????????? | | ?????????????????????????????????????????????????? | | ?????????????????????????????????????????????????? | | ?????????????????????????????????????????????????? | | ?????????????????????????????????????????????????? | | ?????????????????????????????????????????????????? | | ?????????????????????????????????????????????????? | | ?????????????????????????????????????????????????? | | ?????????????????####????????""##????????????????? | | ?????????????????### ????????"###????????????????? | | ????????????????? "#######"" "#????????????????? | | ?????????????????? ""#######"""""????????????????? | | ??????????????????""""" " """ ""???????????????? | | ???????????????????""" "" ""##?""???????????????? | | ??????????????????? "# # "#### """?????????????? | | ??????????????????? #### * ##### "##?????????????? | | ???????????????????### #@ #### "##?????????????? | | ???????????????????## R["#### "###????????????? | | ?????????????????#### "#### "#####??????????? | | ???????????????? #### "" ####??????????? | | ????????????## ### ##??????????? | | ???????????### ## ###??????????? | | ???????????### ##???????????? | | ???????????## #####????????? | | ???????????##### ## ## ##### ????????? | | ???????????######### ## #### ?????? | | ??????????????#### ###### ## ## ##?????? | | ?????????????????? ###### ###?????? | | ???????????????????????### ###??????? | | ????????????????????????#### ## #####???????? | | ????????????????????????#### ### ######???????? | | ???????????????????????##### ### ####?????????? | | ???????????????????????#### ###?????????? | | ???????????????????????## ##??????#### | | ???????????????????????## ##??????#### | | ???????????????????????### ###????? ## | | ?????#######??????????? ### ####??## # | | ?????######### ??????? ##### ####### # | | ?????## ####### ??????### ### ##### # | | ?????## ## ### ?????? ## ## # | | ?????## ! "##?# # | +----------------------------------------------------+ Best States ------------- Heat Dissipation 25 Energy Generation 12 Energy Capacity 265 Matter Stores 300 Matter Capacity 300 Sight Range 16 Robot Scan Range 14 Terrain Scan Density 10 Armor Coverage 150 Evasion (%) 50 Targeting Accuracy 5 Recoil Reduction 2 Item Schematics ----------------- None Robot Schematics ------------------ None Fabricated ------------ Nothing Alien Tech Used ----------------- None Achievements -------------- None Challenges ------------ None Game ------ Seed InsulatedPulseAutopenetrator Manual? 0 Play Time 00:11:13 Cumulative 86.7 hours Start 2024.10.31 @ 17:41:27 End 2024.10.31 @ 17:52:57 Sessions 3 Manual Loads 0 Difficulty Rogue Special Mode None Game No. 145 Rogue 144 Adventurer 1 Explorer 0 Win Type - Total 0 Types 0/0/0/0/0/0/0/0/0 Lore% 50 Gallery% 52 Achievement% 44 Wizard Run 0 Options --------- Layout 1 ASCII 0 Keyboard 0 Movement Mouse Keybinds 0 Fullscreen 2 Font 24/Terminus Map View 50x35 Zoom Use 0% Tactical HUD 1 Map Filters NONE Filters NONE Steam 1 RUN: 67279478-3a5c-4c19-af46-b742d4aba1bb